[Event "Early-Titled-Tuesday-Blitz-October-24-2023"]
[Site "Chess.com"]
[Date "2023.10.24"]
[Round "8"]
[White "SlavenPastar"]
[Black "MatyChess1"]
[Result "1-0"]
[WhiteElo "2619"]
[BlackElo "2726"]
[TimeControl "180+1"]
[EndTime "9:25:57 PDT"]
[Termination "SlavenPastar won by resignation"]

1. b3 {[%clk 0:03:00.9]} 1... d5 {[%clk 0:02:59.7]} 2. Bb2 {[%clk 0:03:01.4]}
2... Bf5 {[%clk 0:03:00.3]} 3. Nf3 {[%clk 0:03:01.8]} 3... e6 {[%clk 0:03:00.9]}
4. e3 {[%clk 0:03:02.4]} 4... Nf6 {[%clk 0:03:01]} 5. c4 {[%clk 0:03:02]} 5...
c6 {[%clk 0:03:00.4]} 6. Be2 {[%clk 0:03:01.2]} 6... Nbd7 {[%clk 0:03:00.4]} 7.
O-O {[%clk 0:03:01.6]} 7... Bd6 {[%clk 0:03:00.4]} 8. d3 {[%clk 0:03:02.3]} 8...
h6 {[%clk 0:02:59.6]} 9. Nbd2 {[%clk 0:03:02.8]} 9... Bh7 {[%clk 0:02:59.3]} 10.
a3 {[%clk 0:03:02.1]} 10... a5 {[%clk 0:02:58.7]} 11. Qc2 {[%clk 0:03:02]} 11...
Nc5 {[%clk 0:02:53.5]} 12. b4 {[%clk 0:02:50.9]} 12... Ncd7 {[%clk 0:02:45.8]}
13. c5 {[%clk 0:02:44.7]} 13... Bc7 {[%clk 0:02:44.8]} 14. Qb3 {[%clk 0:02:45]}
14... e5 {[%clk 0:02:35.8]} 15. d4 {[%clk 0:02:43.6]} 15... exd4 {[%clk
0:02:28]} 16. Nxd4 {[%clk 0:02:37.8]} 16... O-O {[%clk 0:02:28.3]} 17. Bd3
{[%clk 0:02:29.2]} 17... Re8 {[%clk 0:02:11.2]} 18. Bxh7+ {[%clk 0:02:23.9]}
18... Kxh7 {[%clk 0:02:11.2]} 19. N2f3 {[%clk 0:02:24.5]} 19... Ne4 {[%clk
0:02:09.9]} 20. Qc2 {[%clk 0:02:13.4]} 20... Kg8 {[%clk 0:02:09.7]} 21. h3
{[%clk 0:02:07.1]} 21... Ne5 {[%clk 0:01:36.8]} 22. Nxe5 {[%clk 0:02:04.8]}
22... Bxe5 {[%clk 0:01:37.7]} 23. Nf3 {[%clk 0:01:46]} 23... Bc7 {[%clk
0:01:33.5]} 24. Bd4 {[%clk 0:01:40.5]} 24... Re6 {[%clk 0:01:30.8]} 25. Nd2
{[%clk 0:01:34.4]} 25... Ng5 {[%clk 0:01:27.9]} 26. f4 {[%clk 0:01:28.1]} 26...
Ne4 {[%clk 0:01:13.6]} 27. Nxe4 {[%clk 0:01:26.9]} 27... Rxe4 {[%clk 0:01:13.7]}
28. Qb2 {[%clk 0:01:14.4]} 28... f6 {[%clk 0:00:37.7]} 29. b5 {[%clk 0:01:14.1]}
29... Qe8 {[%clk 0:00:17.2]} 30. Rab1 {[%clk 0:01:02.2]} 30... Rb8 {[%clk
0:00:07.6]} 31. b6 {[%clk 0:00:58.2]} 31... Bd8 {[%clk 0:00:07.8]} 32. f5 {[%clk
0:00:51.5]} 32... Ra8 {[%clk 0:00:08.4]} 33. a4 {[%clk 0:00:40.4]} 33... Be7
{[%clk 0:00:08.1]} 34. Qc3 {[%clk 0:00:35.8]} 34... Bf8 {[%clk 0:00:08.4]} 35.
Rf3 {[%clk 0:00:35.8]} 35... Qf7 {[%clk 0:00:05.8]} 36. Rbf1 {[%clk 0:00:33.1]}
36... Qe8 {[%clk 0:00:06.3]} 37. Rf4 {[%clk 0:00:29]} 37... Qe7 {[%clk
0:00:04.8]} 38. Qd3 {[%clk 0:00:24.8]} 38... Rxf4 {[%clk 0:00:04.2]} 39. Rxf4
{[%clk 0:00:25.7]} 39... Qd7 {[%clk 0:00:03.3]} 40. Rg4 {[%clk 0:00:22.6]} 40...
Kh8 {[%clk 0:00:02.8]} 41. Qf1 {[%clk 0:00:20.3]} 41... Re8 {[%clk 0:00:03]} 42.
Rh4 {[%clk 0:00:15.9]} 42... Kg8 {[%clk 0:00:02.4]} 43. Qf3 {[%clk 0:00:14.6]}
43... Qf7 {[%clk 0:00:02.8]} 44. Rg4 {[%clk 0:00:13.6]} 44... Qd7 {[%clk
0:00:02.1]} 45. Bxf6 {[%clk 0:00:12]} 45... Qf7 {[%clk 0:00:02.4]} 46. Bd4
{[%clk 0:00:12.1]} 46... Kh7 {[%clk 0:00:02.6]} 47. Rg6 {[%clk 0:00:10]} 47...
Re7 {[%clk 0:00:01.2]} 48. h4 {[%clk 0:00:10.5]} 48... Re8 {[%clk 0:00:01.5]}
49. h5 {[%clk 0:00:10.9]} 49... Re7 {[%clk 0:00:02.1]} 50. f6 {[%clk 0:00:11.5]}
50... gxf6 {[%clk 0:00:02.7]} 51. Rxf6 {[%clk 0:00:12]} 51... Qg8 {[%clk
0:00:03]} 52. Qf5+ {[%clk 0:00:12.3]} 52... Kh8 {[%clk 0:00:03.3]} 53. Rxf8+
{[%clk 0:00:12.4]} 1-0

[Event "Early-Titled-Tuesday-Blitz-October-24-2023"]
[Site "Chess.com"]
[Date "2023.10.24"]
[Round "8"]
[White "Mystery2007"]
[Black "ImBushchess"]
[Result "1-0"]
[WhiteElo "2443"]
[BlackElo "2247"]
[TimeControl "180+1"]
[EndTime "9:26:05 PDT"]
[Termination "Mystery2007 won on time"]

1. c4 {[%clk 0:03:00.9]} 1... Nf6 {[%clk 0:02:53.7]} 2. g3 {[%clk 0:03:00.7]}
2... g6 {[%clk 0:02:54.6]} 3. Bg2 {[%clk 0:03:00.8]} 3... Bg7 {[%clk 0:02:53.6]}
4. Nc3 {[%clk 0:03:01.4]} 4... O-O {[%clk 0:02:54.5]} 5. e3 {[%clk 0:03:01.3]}
5... d6 {[%clk 0:02:54.6]} 6. d4 {[%clk 0:03:01.2]} 6... a6 {[%clk 0:02:51]} 7.
Nge2 {[%clk 0:03:01.3]} 7... Nc6 {[%clk 0:02:51.9]} 8. O-O {[%clk 0:03:01.6]}
8... Rb8 {[%clk 0:02:40.6]} 9. b3 {[%clk 0:03:02]} 9... Bg4 {[%clk 0:02:38.3]}
10. Bb2 {[%clk 0:03:00.2]} 10... h5 {[%clk 0:02:22.8]} 11. h3 {[%clk 0:02:59.3]}
11... Bd7 {[%clk 0:02:19.5]} 12. d5 {[%clk 0:02:57.5]} 12... Na5 {[%clk
0:02:13.8]} 13. Nd4 {[%clk 0:02:36.2]} 13... c5 {[%clk 0:02:10.2]} 14. dxc6
{[%clk 0:02:30]} 14... bxc6 {[%clk 0:02:10.9]} 15. Qd2 {[%clk 0:02:25.5]} 15...
e5 {[%clk 0:01:58.8]} 16. Nde2 {[%clk 0:02:21.7]} 16... Be6 {[%clk 0:01:53.4]}
17. Rfd1 {[%clk 0:02:21.9]} 17... Bxc4 {[%clk 0:01:47.2]} 18. Qxd6 {[%clk
0:02:15]} 18... Qxd6 {[%clk 0:01:44.4]} 19. Rxd6 {[%clk 0:02:15.9]} 19... Bxe2
{[%clk 0:01:44.1]} 20. Nxe2 {[%clk 0:02:12.9]} 20... Nc4 {[%clk 0:01:42.8]} 21.
bxc4 {[%clk 0:02:07.9]} 21... Rxb2 {[%clk 0:01:43.1]} 22. Nc3 {[%clk 0:02:05.6]}
22... Rc2 {[%clk 0:01:39.8]} 23. Ne4 {[%clk 0:01:41]} 23... Nxe4 {[%clk
0:01:35.3]} 24. Bxe4 {[%clk 0:01:41.9]} 24... Rxc4 {[%clk 0:01:35.2]} 25. Bxc6
{[%clk 0:01:35.3]} 25... Rc2 {[%clk 0:01:25.5]} 26. Bd5 {[%clk 0:01:28.2]} 26...
a5 {[%clk 0:01:17.8]} 27. Rb1 {[%clk 0:01:22.3]} 27... Rc7 {[%clk 0:00:55.2]}
28. Rb5 {[%clk 0:01:09]} 28... Ra7 {[%clk 0:00:54.3]} 29. Rxg6 {[%clk 0:01:07]}
29... Rd8 {[%clk 0:00:44.5]} 30. Rg5 {[%clk 0:01:04.9]} 30... h4 {[%clk
0:00:39.3]} 31. gxh4 {[%clk 0:01:01.8]} 31... Kf8 {[%clk 0:00:38.9]} 32. h5
{[%clk 0:00:59.9]} 32... Bf6 {[%clk 0:00:38]} 33. Rf5 {[%clk 0:00:58.1]} 33...
Ke7 {[%clk 0:00:37.4]} 34. Rb6 {[%clk 0:00:45.9]} 34... Rxd5 {[%clk 0:00:25.4]}
35. Rbxf6 {[%clk 0:00:44.7]} 35... Kf8 {[%clk 0:00:22.5]} 36. h6 {[%clk
0:00:45]} 36... Kg8 {[%clk 0:00:22.1]} 37. Kg2 {[%clk 0:00:38.4]} 37... Re7
{[%clk 0:00:20.5]} 38. Kg3 {[%clk 0:00:33.9]} 38... Rd2 {[%clk 0:00:19.9]} 39.
a4 {[%clk 0:00:19.1]} 39... Ra2 {[%clk 0:00:18.8]} 40. h7+ {[%clk 0:00:17]}
40... Kxh7 {[%clk 0:00:16.8]} 41. Rxf7+ {[%clk 0:00:17.5]} 41... Rxf7 {[%clk
0:00:16]} 42. Rxf7+ {[%clk 0:00:18.4]} 42... Kg6 {[%clk 0:00:16.2]} 43. Re7
{[%clk 0:00:16.8]} 43... Kf6 {[%clk 0:00:13.4]} 44. Ra7 {[%clk 0:00:15.9]} 44...
Rxa4 {[%clk 0:00:14.3]} 45. Ra6+ {[%clk 0:00:14.5]} 45... Kf7 {[%clk 0:00:08.9]}
46. f3 {[%clk 0:00:12.2]} 46... Ra1 {[%clk 0:00:07.8]} 47. Kg4 {[%clk
0:00:12.2]} 47... Ra3 {[%clk 0:00:02.9]} 48. e4 {[%clk 0:00:11.6]} 1-0

[Event "Early-Titled-Tuesday-Blitz-October-24-2023"]
[Site "Chess.com"]
[Date "2023.10.24"]
[Round "8"]
[White "lilleper1"]
[Black "NovozhilovSemen"]
[Result "1/2-1/2"]
[WhiteElo "2879"]
[BlackElo "2716"]
[TimeControl "180+1"]
[EndTime "9:26:06 PDT"]
[Termination "Game drawn by agreement"]

1. e4 {[%clk 0:03:00.9]} 1... c5 {[%clk 0:02:59.5]} 2. Nf3 {[%clk 0:03:01]} 2...
Nc6 {[%clk 0:02:59.8]} 3. Nc3 {[%clk 0:03:00.6]} 3... d6 {[%clk 0:02:59.8]} 4.
d4 {[%clk 0:02:59.8]} 4... cxd4 {[%clk 0:03:00]} 5. Nxd4 {[%clk 0:03:00.7]} 5...
Nf6 {[%clk 0:03:00.4]} 6. Be3 {[%clk 0:02:58.8]} 6... Ng4 {[%clk 0:02:59.7]} 7.
Nxc6 {[%clk 0:02:51]} 7... bxc6 {[%clk 0:02:59.3]} 8. Bc1 {[%clk 0:02:49.9]}
8... Qb6 {[%clk 0:02:55.5]} 9. Qf3 {[%clk 0:02:45.1]} 9... g6 {[%clk 0:02:47.5]}
10. Be2 {[%clk 0:02:42.5]} 10... Bg7 {[%clk 0:02:46.9]} 11. O-O {[%clk
0:02:35.9]} 11... O-O {[%clk 0:02:46.9]} 12. Qg3 {[%clk 0:02:32.8]} 12... Nf6
{[%clk 0:02:45.2]} 13. Rb1 {[%clk 0:02:25.9]} 13... Be6 {[%clk 0:02:38.3]} 14.
b3 {[%clk 0:02:25.2]} 14... a5 {[%clk 0:02:02.7]} 15. Bb2 {[%clk 0:02:04.1]}
15... Qc7 {[%clk 0:02:01]} 16. Bd3 {[%clk 0:02:01.9]} 16... Rfc8 {[%clk
0:01:53.6]} 17. Rbe1 {[%clk 0:01:57.1]} 17... a4 {[%clk 0:01:31.8]} 18. f4
{[%clk 0:01:50]} 18... a3 {[%clk 0:01:22.5]} 19. Ba1 {[%clk 0:01:49]} 19... Qa5
{[%clk 0:01:21.4]} 20. Kh1 {[%clk 0:01:39.8]} 20... Nh5 {[%clk 0:01:18.3]} 21.
Qg5 {[%clk 0:01:29.3]} 21... Bxc3 {[%clk 0:00:53.6]} 22. Bxc3 {[%clk 0:01:28.9]}
22... Qxc3 {[%clk 0:00:54.5]} 23. f5 {[%clk 0:01:28.8]} 23... Qf6 {[%clk
0:00:45.9]} 24. Qxf6 {[%clk 0:01:24.8]} 24... Nxf6 {[%clk 0:00:46.8]} 25. fxe6
{[%clk 0:01:25.3]} 25... fxe6 {[%clk 0:00:47.1]} 26. e5 {[%clk 0:01:25.8]} 26...
Nd5 {[%clk 0:00:43.6]} 27. exd6 {[%clk 0:01:20.7]} 27... exd6 {[%clk 0:00:44.5]}
28. Rxe6 {[%clk 0:01:20.2]} 28... Rf8 {[%clk 0:00:37.7]} 29. Ra1 {[%clk
0:01:12.7]} 29... Nb4 {[%clk 0:00:33.4]} 30. Rxd6 {[%clk 0:01:09.3]} 30... Rad8
{[%clk 0:00:33]} 31. Rxd8 {[%clk 0:01:01.7]} 31... Rxd8 {[%clk 0:00:33.9]} 32.
Bc4+ {[%clk 0:01:01.9]} 32... Kg7 {[%clk 0:00:33.4]} 33. h4 {[%clk 0:00:41.2]}
33... Rd2 {[%clk 0:00:31.2]} 34. c3 {[%clk 0:00:24.1]} 34... Rxa2 {[%clk
0:00:29.8]} 35. Rd1 {[%clk 0:00:21.3]} 35... Nc2 {[%clk 0:00:20.8]} 36. b4
{[%clk 0:00:20.5]} 36... Rb2 {[%clk 0:00:18.8]} 37. Rd7+ {[%clk 0:00:20.3]}
37... Kf6 {[%clk 0:00:17.7]} 38. Ra7 {[%clk 0:00:21.2]} 38... Ne3 {[%clk
0:00:15.4]} 39. Bg8 {[%clk 0:00:21]} 39... Ng4 {[%clk 0:00:13.8]} 40. g3 {[%clk
0:00:19.9]} 40... Rb1+ {[%clk 0:00:10.9]} 41. Kg2 {[%clk 0:00:19.7]} 41... Ra1
{[%clk 0:00:09.7]} 42. Kf3 {[%clk 0:00:18.2]} 42... h5 {[%clk 0:00:07.6]} 43.
Ke4 {[%clk 0:00:17.6]} 43... Nf2+ {[%clk 0:00:06.3]} 44. Kd4 {[%clk 0:00:17.7]}
44... Rd1+ {[%clk 0:00:03]} 45. Kc5 {[%clk 0:00:16.5]} 45... Ne4+ {[%clk
0:00:03.4]} 46. Kxc6 {[%clk 0:00:16.6]} 46... Ra1 {[%clk 0:00:03.8]} 47. b5
{[%clk 0:00:15.4]} 47... Nxc3 {[%clk 0:00:03.8]} 48. b6 {[%clk 0:00:16]} 48...
a2 {[%clk 0:00:04.5]} 49. b7 {[%clk 0:00:15.5]} 49... Rc1 {[%clk 0:00:05.2]} 50.
Bxa2 {[%clk 0:00:15.3]} 50... Nxa2+ {[%clk 0:00:05.3]} 51. Kd6 {[%clk
0:00:15.7]} 51... Rd1+ {[%clk 0:00:05.5]} 52. Kc5 {[%clk 0:00:16.1]} 52... Rc1+
{[%clk 0:00:06]} 53. Kd4 {[%clk 0:00:16.5]} 53... Rd1+ {[%clk 0:00:06.6]} 54.
Ke3 {[%clk 0:00:16.4]} 54... Rb1 {[%clk 0:00:06.9]} 55. Ra6+ {[%clk 0:00:16.4]}
55... Kg7 {[%clk 0:00:07.1]} 56. Rxa2 {[%clk 0:00:17.3]} 56... Rxb7 {[%clk
0:00:07.4]} 57. Ra3 {[%clk 0:00:16.9]} 57... Rf7 {[%clk 0:00:07.9]} 58. Ra4
{[%clk 0:00:16.9]} 58... Kh6 {[%clk 0:00:08.4]} 59. Rf4 {[%clk 0:00:16.9]} 59...
Re7+ {[%clk 0:00:09]} 60. Kf3 {[%clk 0:00:17]} 60... Ra7 {[%clk 0:00:09.7]} 61.
Rf8 {[%clk 0:00:16.7]} 61... Ra3+ {[%clk 0:00:09.8]} 1/2-1/2

[Event "Early-Titled-Tuesday-Blitz-October-24-2023"]
[Site "Chess.com"]
[Date "2023.10.24"]
[Round "8"]
[White "Nyzhnyk_Illia"]
[Black "Duhless"]
[Result "0-1"]
[WhiteElo "2868"]
[BlackElo "3087"]
[TimeControl "180+1"]
[EndTime "9:26:09 PDT"]
[Termination "Duhless won by checkmate"]

1. d4 {[%clk 0:02:46.8]} 1... Nf6 {[%clk 0:02:59.4]} 2. Nf3 {[%clk 0:02:47.5]}
2... e6 {[%clk 0:02:57.2]} 3. c4 {[%clk 0:02:47.8]} 3... Bb4+ {[%clk 0:02:57.1]}
4. Bd2 {[%clk 0:02:47.9]} 4... Qe7 {[%clk 0:02:54.2]} 5. g3 {[%clk 0:02:47.7]}
5... Bxd2+ {[%clk 0:02:53.9]} 6. Qxd2 {[%clk 0:02:47.2]} 6... Nc6 {[%clk
0:02:53.7]} 7. Nc3 {[%clk 0:02:47.2]} 7... d5 {[%clk 0:02:52.9]} 8. Bg2 {[%clk
0:02:45.4]} 8... O-O {[%clk 0:02:51.4]} 9. O-O {[%clk 0:02:45.5]} 9... dxc4
{[%clk 0:02:35.5]} 10. e4 {[%clk 0:02:43.4]} 10... Rd8 {[%clk 0:02:33.7]} 11.
Rfd1 {[%clk 0:02:43.1]} 11... b6 {[%clk 0:02:24.1]} 12. Qc2 {[%clk 0:02:21]}
12... Bb7 {[%clk 0:02:16.9]} 13. a3 {[%clk 0:02:14]} 13... Na5 {[%clk
0:02:13.7]} 14. Re1 {[%clk 0:02:12.7]} 14... h6 {[%clk 0:02:10.3]} 15. Rad1
{[%clk 0:02:13.1]} 15... Qf8 {[%clk 0:01:57.3]} 16. Ne5 {[%clk 0:02:12.2]} 16...
a6 {[%clk 0:01:54.3]} 17. f4 {[%clk 0:02:11.4]} 17... b5 {[%clk 0:01:50.5]} 18.
g4 {[%clk 0:02:09.7]} 18... Nd7 {[%clk 0:01:42.5]} 19. Nf3 {[%clk 0:02:06.9]}
19... c5 {[%clk 0:01:37.9]} 20. d5 {[%clk 0:02:06.4]} 20... b4 {[%clk
0:01:31.1]} 21. dxe6 {[%clk 0:02:03.8]} 21... fxe6 {[%clk 0:01:32]} 22. Ne2
{[%clk 0:02:03.8]} 22... Nb6 {[%clk 0:01:23.3]} 23. Ne5 {[%clk 0:01:59.6]} 23...
Rxd1 {[%clk 0:01:20.1]} 24. Rxd1 {[%clk 0:01:57.5]} 24... Rd8 {[%clk 0:01:20.8]}
25. Rf1 {[%clk 0:01:51.9]} 25... Qd6 {[%clk 0:01:17.9]} 26. Ng3 {[%clk
0:01:20.7]} 26... Nc6 {[%clk 0:00:51.1]} 27. Nxc6 {[%clk 0:01:12.9]} 27... Bxc6
{[%clk 0:00:51]} 28. f5 {[%clk 0:01:13.4]} 28... exf5 {[%clk 0:00:40.4]} 29.
gxf5 {[%clk 0:01:07.1]} 29... Qd2 {[%clk 0:00:34.9]} 30. Qb1 {[%clk 0:01:06.2]}
30... c3 {[%clk 0:00:26.2]} 31. bxc3 {[%clk 0:01:05.9]} 31... Bb5 {[%clk
0:00:26.9]} 32. Rc1 {[%clk 0:00:38.9]} 32... bxa3 {[%clk 0:00:22.4]} 33. Nf1
{[%clk 0:00:28.8]} 33... Qb2 {[%clk 0:00:20.3]} 34. e5 {[%clk 0:00:26.4]} 34...
Qxb1 {[%clk 0:00:14.6]} 35. Rxb1 {[%clk 0:00:27.3]} 35... Bd3 {[%clk 0:00:13.5]}
36. Ra1 {[%clk 0:00:25]} 36... Nc4 {[%clk 0:00:13.8]} 37. e6 {[%clk 0:00:24]}
37... Kf8 {[%clk 0:00:12.6]} 38. Ng3 {[%clk 0:00:23.8]} 38... Ke7 {[%clk
0:00:11.1]} 39. Bb7 {[%clk 0:00:24]} 39... Rd6 {[%clk 0:00:09.6]} 40. Kf2 {[%clk
0:00:22.6]} 40... Rb6 {[%clk 0:00:09.8]} 41. Bd5 {[%clk 0:00:22.8]} 41... Rb2+
{[%clk 0:00:07.4]} 42. Kf3 {[%clk 0:00:23.2]} 42... Nb6 {[%clk 0:00:06.4]} 43.
Ke3 {[%clk 0:00:18]} 43... c4 {[%clk 0:00:04.5]} 44. Be4 {[%clk 0:00:14.1]}
44... Bxe4 {[%clk 0:00:04.2]} 45. Nxe4 {[%clk 0:00:14.7]} 45... a2 {[%clk
0:00:04.7]} 46. Kd4 {[%clk 0:00:15.4]} 46... a5 {[%clk 0:00:04]} 47. Kc5 {[%clk
0:00:15.5]} 47... a4 {[%clk 0:00:04.4]} 48. Rg1 {[%clk 0:00:14]} 48... Kf8
{[%clk 0:00:03.9]} 49. Ra1 {[%clk 0:00:04.3]} 49... a3 {[%clk 0:00:04]} 50. Nd6
{[%clk 0:00:04.7]} 50... Ke7 {[%clk 0:00:03.6]} 51. Nxc4 {[%clk 0:00:05.2]}
51... Na4+ {[%clk 0:00:03.6]} 52. Kd4 {[%clk 0:00:05.4]} 52... Rxh2 {[%clk
0:00:03.7]} 53. Nxa3 {[%clk 0:00:05.9]} 53... Rh4+ {[%clk 0:00:02.5]} 54. Ke5
{[%clk 0:00:05]} 54... Nxc3 {[%clk 0:00:02.2]} 55. Nc4 {[%clk 0:00:05]} 55...
Re4# {[%clk 0:00:01.9]} 0-1

[Event "Early-Titled-Tuesday-Blitz-October-24-2023"]
[Site "Chess.com"]
[Date "2023.10.24"]
[Round "8"]
[White "IsaqueGoncalvesSanto"]
[Black "parintele_chess"]
[Result "1-0"]
[WhiteElo "1843"]
[BlackElo "2239"]
[TimeControl "180+1"]
[EndTime "9:26:10 PDT"]
[Termination "IsaqueGoncalvesSanto won on time"]

1. d4 {[%clk 0:03:00.9]} 1... Nf6 {[%clk 0:02:14.2]} 2. c4 {[%clk 0:02:59.5]}
2... e6 {[%clk 0:02:14.4]} 3. Nc3 {[%clk 0:02:57.2]} 3... Bb4 {[%clk 0:02:14.9]}
4. e3 {[%clk 0:02:56.7]} 4... O-O {[%clk 0:02:13.3]} 5. Bd3 {[%clk 0:02:56.3]}
5... b6 {[%clk 0:02:12.3]} 6. Ne2 {[%clk 0:02:55.2]} 6... Bb7 {[%clk 0:02:12.1]}
7. f3 {[%clk 0:02:54.7]} 7... c5 {[%clk 0:02:05.7]} 8. a3 {[%clk 0:02:54]} 8...
Bxc3+ {[%clk 0:02:05.2]} 9. bxc3 {[%clk 0:02:53]} 9... d5 {[%clk 0:02:04.8]} 10.
cxd5 {[%clk 0:02:52.3]} 10... exd5 {[%clk 0:02:00.6]} 11. O-O {[%clk 0:02:50.9]}
11... Re8 {[%clk 0:01:59.6]} 12. Ng3 {[%clk 0:02:49.7]} 12... Nbd7 {[%clk
0:01:54.1]} 13. Bd2 {[%clk 0:02:39.3]} 13... Nf8 {[%clk 0:01:50]} 14. Qc2 {[%clk
0:02:18.3]} 14... c4 {[%clk 0:01:42.1]} 15. Bf5 {[%clk 0:02:15.5]} 15... g6
{[%clk 0:01:42.6]} 16. Bh3 {[%clk 0:02:14.9]} 16... Ne6 {[%clk 0:01:34.1]} 17.
Bxe6 {[%clk 0:02:03]} 17... Rxe6 {[%clk 0:01:35]} 18. Rae1 {[%clk 0:02:01.2]}
18... Qe7 {[%clk 0:01:27.8]} 19. Bc1 {[%clk 0:01:58.4]} 19... Re8 {[%clk
0:01:25.8]} 20. Re2 {[%clk 0:01:55.8]} 20... h5 {[%clk 0:01:23.1]} 21. Rfe1
{[%clk 0:01:52.9]} 21... h4 {[%clk 0:01:21.9]} 22. Nf1 {[%clk 0:01:52.6]} 22...
Qd8 {[%clk 0:01:07.5]} 23. Qa4 {[%clk 0:01:47.3]} 23... Qa8 {[%clk 0:01:02.2]}
24. Qb4 {[%clk 0:01:45.6]} 24... a5 {[%clk 0:00:58.7]} 25. Qb1 {[%clk
0:01:43.8]} 25... Kg7 {[%clk 0:00:51.7]} 26. Qc2 {[%clk 0:01:28.3]} 26... Nh5
{[%clk 0:00:47.3]} 27. Qb2 {[%clk 0:01:26.7]} 27... Qa6 {[%clk 0:00:34.9]} 28.
g4 {[%clk 0:01:19]} 28... hxg3 {[%clk 0:00:32.6]} 29. hxg3 {[%clk 0:01:19.1]}
29... Nf6 {[%clk 0:00:23.6]} 30. g4 {[%clk 0:01:15.7]} 30... Qa8 {[%clk
0:00:22.1]} 31. Ng3 {[%clk 0:01:14.9]} 31... Qb8 {[%clk 0:00:22.2]} 32. Kf2
{[%clk 0:01:11.2]} 32... Rh8 {[%clk 0:00:22.8]} 33. Kg2 {[%clk 0:00:54.3]} 33...
Rh4 {[%clk 0:00:22.6]} 34. Rh1 {[%clk 0:00:52.1]} 34... Rxh1 {[%clk 0:00:16.3]}
35. Nxh1 {[%clk 0:00:51.7]} 35... Nxg4 {[%clk 0:00:06.1]} 36. fxg4 {[%clk
0:00:48.8]} 36... Re4 {[%clk 0:00:06.6]} 37. Nf2 {[%clk 0:00:47]} 37... Re6
{[%clk 0:00:04]} 38. Qd2 {[%clk 0:00:41.4]} 38... Qc8 {[%clk 0:00:03]} 39. e4
{[%clk 0:00:40.7]} 39... dxe4 {[%clk 0:00:03.1]} 40. Qh6+ {[%clk 0:00:40.4]}
40... Kg8 {[%clk 0:00:02.7]} 41. Be3 {[%clk 0:00:36.5]} 41... Re8 {[%clk
0:00:02.2]} 42. Bg5 {[%clk 0:00:33]} 42... Qe6 {[%clk 0:00:02.2]} 43. Qh4 {[%clk
0:00:30.3]} 43... e3+ {[%clk 0:00:03.1]} 44. Kf1 {[%clk 0:00:25.3]} 44... Kg7
{[%clk 0:00:03.1]} 45. Rxe3 {[%clk 0:00:18]} 45... Qxe3 {[%clk 0:00:02.9]} 46.
Bxe3 {[%clk 0:00:17.5]} 46... Rxe3 {[%clk 0:00:03.8]} 47. Qg5 {[%clk 0:00:15]}
47... Rf3 {[%clk 0:00:04.4]} 48. Qe5+ {[%clk 0:00:14.6]} 48... Kg8 {[%clk
0:00:04.9]} 49. Ke2 {[%clk 0:00:14.6]} 49... Kh7 {[%clk 0:00:04.1]} 50. d5
{[%clk 0:00:13.3]} 50... Rd3 {[%clk 0:00:03.6]} 51. Qe7 {[%clk 0:00:10.3]} 51...
Kg8 {[%clk 0:00:03.5]} 52. Nxd3 {[%clk 0:00:10.3]} 52... cxd3+ {[%clk
0:00:04.4]} 53. Kxd3 {[%clk 0:00:10.7]} 53... Bxd5 {[%clk 0:00:05.3]} 54. Qd8+
{[%clk 0:00:10.8]} 54... Kg7 {[%clk 0:00:05.3]} 55. Qxd5 {[%clk 0:00:11.4]} 1-0